bitfinex/quotes_SOLUSD_20251025
["timestamp","ask_amount","ask_price","bid_price","bid_amount"]
[1761375402105,5.14511662,194.36,194.35,50.99316403]
[1761375405320,5.82511662,194.36,194.35,50.99316403]
[1761375408010,5.14511662,194.36,194.35,50.99316403]
[1761375410843,0.2,194.42,194.35,51.68316403]
[1761375411132,0.2,194.42,194.38,2.54351576]
[1761375411330,0.2,194.42,194.39,35.54]
[1761375411525,0.2,194.42,194.39,36.23]
[1761375411730,0.2,194.42,194.4,0.69]
[1761375412334,5.34350375,194.42,194.41,5.14325918]
[1761375414337,8.57701951,194.42,194.39,32.28]
[1761375414521,2.54351576,194.4,194.38,32.28]
[1761375414722,2.54351576,194.39,194.38,32.28]
[1761375415125,3.23351576,194.39,194.38,47.73157219]
[1761375415843,2.54351576,194.4,194.38,47.73157219]
[1761375416346,2.54351576,194.39,194.38,32.28]
[1761375416839,3.23351576,194.39,194.38,45.33875938]
[1761375422430,2.54351576,194.39,194.38,45.33875938]
[1761375422947,7.687712,194.4,194.38,46.04875938]
[1761375423351,2.54351576,194.4,194.38,32.99]
[1761375423726,2.54351576,194.4,194.39,15.44998068]
[1761375424932,3.22351576,194.4,194.39,15.44998068]
[1761375427637,8.36754868,194.4,194.39,15.44998068]
[1761375431448,8.36754868,194.4,194.39,50.96998068]
[1761375434953,8.36754868,194.4,194.39,35.52]
[1761375435535,10.91106444,194.4,194.38,12.85813639]
[1761375435750,3.22351576,194.39,194.35,35.52]
[1761375435951,3.22351576,194.39,194.33,12.85813639]
[1761375435952,2.54351576,194.36,194.33,12.85813639]
[1761375436148,2.54351576,194.34,194.32,31.56]
[1761375436347,2.54351576,194.33,194.32,31.56]
[1761375436737,3.22351576,194.33,194.32,31.56]
[1761375437160,8.36940162,194.33,194.32,47.01634869]
[1761375438248,8.36940162,194.33,194.32,31.56]
[1761375439555,7.68940162,194.33,194.32,31.56]
[1761375441036,2.54351576,194.33,194.32,31.56]
[1761375441265,2.54351576,194.33,194.32,32.23]
[1761375441758,2.54351576,194.33,194.32,45.75290122]
[1761375442953,2.54351576,194.33,194.32,45.08290122]
[1761375445064,3.20351576,194.33,194.32,45.08290122]
[1761375445465,2.54351576,194.33,194.32,45.08290122]
[1761375445669,2.54351576,194.33,194.32,13.52290122]
[1761375445961,2.54351576,194.33,194.32,49.04290122]
[1761375446465,2.54351576,194.33,194.32,13.52290122]
[1761375446668,2.54351576,194.33,194.32,49.04290122]
[1761375448067,3.20351576,194.33,194.32,49.04290122]
[1761375448651,2.54351576,194.33,194.32,49.04290122]
[1761375450248,3.20351576,194.33,194.32,49.04290122]
[1761375450851,8.34940162,194.33,194.32,49.04290122]
[1761375451145,8.34940162,194.33,194.32,35.52]
[1761375451759,7.68940162,194.33,194.32,35.52]
[1761375453467,2.54351576,194.33,194.32,35.52]
[1761375453868,2.54351576,194.33,194.32,48.38213647]
[1761375454664,1.62819835,194.33,194.32,48.38213647]
[1761375454975,1.62819835,194.33,194.32,12.86213647]
[1761375455177,1.62819835,194.33,194.32,48.38213647]
[1761375457977,2.28819835,194.33,194.32,48.38213647]
[1761375460470,1.62819835,194.33,194.32,48.38213647]
[1761375463583,2.28819835,194.33,194.32,48.38213647]
[1761375464476,1.62819835,194.33,194.32,48.38213647]
[1761375466367,2.28819835,194.33,194.32,48.38213647]
[1761375469087,2.28819835,194.33,194.32,35.52]
[1761375469575,1.62819835,194.33,194.32,35.52]
[1761375472070,2.34819835,194.33,194.32,35.52]
[1761375474991,1.62819835,194.33,194.32,35.52]
[1761375475570,2.34819835,194.33,194.32,35.52]
[1761375476595,7.49408421,194.33,194.32,35.52]
[1761375477302,6.77408421,194.33,194.32,35.52]
[1761375480181,6.77385038,194.34,194.32,36.19]
[1761375480395,6.77385038,194.34,194.33,0.67]
[1761375480595,6.77385038,194.34,194.32,36.19]
[1761375481083,6.77385038,194.34,194.32,35.52]
[1761375481400,7.47385038,194.34,194.32,35.52]
[1761375483687,6.77408421,194.33,194.32,35.52]
[1761375485285,6.77384806,194.34,194.32,35.52]
[1761375485596,6.77384806,194.34,194.32,36.19]
[1761375486406,7.47384806,194.34,194.32,35.52]
[1761375487005,0.7,194.33,194.32,35.52]
[1761375489210,7.47384806,194.34,194.32,35.52]
[1761375489505,5.14564971,194.34,194.33,0.67]
[1761375490005,5.14564971,194.34,194.32,35.52]
[1761375490006,5.14564971,194.34,194.32,36.19]
[1761375490500,5.14564971,194.34,194.28,5.14721021]
[1761375490709,7.47384806,194.34,194.29,36.19]
[1761375491103,7.47384806,194.34,194.3,0.67]
[1761375491612,6.77384806,194.34,194.3,0.67]
[1761375492111,5.84589035,194.33,194.3,0.67]
[1761375497216,7.4740887,194.33,194.3,0.67]
[1761375497516,7.4740887,194.33,194.31,35.52]
[1761375498614,0.7,194.32,194.31,35.52]
[1761375499011,0.7,194.32,194.28,5.81721021]
[1761375499204,0.7,194.32,194.31,35.52]
[1761375499404,0.7,194.32,194.29,0.67]
[1761375499720,0.7,194.32,194.3,35.52]
[1761375508829,7.47435342,194.32,194.29,0.67]
[1761375509005,6.77435342,194.32,194.31,35.52]
[1761375509213,7.44435342,194.32,194.31,35.52]
[1761375510642,5.81615507,194.32,194.31,35.52]
[1761375510929,5.14615507,194.32,194.31,35.52]
[1761375511518,5.81615507,194.32,194.31,35.52]
[1761375511730,5.14615507,194.32,194.31,35.52]
[1761375512737,5.81615507,194.32,194.31,35.52]
[1761375513103,7.44435342,194.32,194.31,35.52]
[1761375516525,5.81615507,194.32,194.31,35.52]
[1761375517426,5.81615507,194.32,194.27,5.14741632]
[1761375517615,0.67,194.31,194.28,36.2]
[1761375518404,7.6903478,194.32,194.28,35.52]
[1761375518605,8.3603478,194.32,194.29,0.68]
[1761375519341,0.67,194.31,194.28,35.52]
[1761375519533,7.6903478,194.32,194.28,36.2]
[1761375519839,8.3603478,194.32,194.28,35.52]
[1761375520022,8.3603478,194.32,194.28,36.2]
[1761375520218,7.6903478,194.32,194.28,36.2]
[1761375520525,8.3603478,194.32,194.28,36.2]
[1761375520839,8.3603478,194.32,194.29,0.68]
[1761375521038,5.81615507,194.32,194.29,0.68]
[1761375522721,5.81615507,194.32,194.3,35.52]
[1761375522918,5.81615507,194.32,194.29,0.68]
[1761375523224,5.81615507,194.32,194.3,35.52]
[1761375523526,5.81615507,194.32,194.31,35.52]
[1761375525234,5.81615507,194.32,194.29,0.68]
[1761375525422,5.81615507,194.32,194.3,35.52]
[1761375525622,0.67,194.31,194.27,0.68]
[1761375525929,0.67,194.31,194.28,36.2]
[1761375527238,5.14615507,194.32,194.28,36.2]
[1761375527438,5.81615507,194.32,194.28,36.2]
[1761375527923,0.67,194.31,194.28,35.52]
[1761375529243,22.88,194.23,194.15,43.31482011]
[1761375529422,2.54419273,194.22,194.19,5.14615507]
[1761375529630,3.21419273,194.22,194.19,40.76615507]
[1761375530140,2.54419273,194.21,194.19,40.76615507]
[1761375530340,3.22419273,194.21,194.19,40.76615507]
[1761375530522,2.54419273,194.2,194.19,40.76615507]
[1761375531030,44.11828361,194.2,194.16,0.1]
[1761375531227,2.54419273,194.17,194.16,0.1]
[1761375531427,7.6943189,194.17,194.16,0.1]
[1761375531616,8.3743189,194.17,194.16,0.1]
[1761375535446,8.3743189,194.17,194.16,2.26254672]
[1761375540248,8.3743189,194.17,194.16,0.1]
[1761375540746,8.3743189,194.17,194.16,2.36254672]
[1761375541819,8.3743189,194.17,194.16,0.1]
[1761375542438,5.83012617,194.17,194.16,0.1]
[1761375542638,8.3743189,194.17,194.16,2.56254672]
[1761375543832,22.88,194.19,194.16,2.56254672]
[1761375544146,22.88,194.19,194.17,36.4]
[1761375544332,25.42419273,194.19,194.17,36.4]
[1761375544523,25.42419273,194.19,194.17,38.96254672]
[1761375544946,22.88,194.19,194.17,38.96254672]
[1761375545127,30.57378848,194.19,194.17,36.4]
[1761375545327,30.57378848,194.19,194.18,15.46750534]
[1761375546027,31.24378848,194.19,194.18,15.46750534]
[1761375546428,28.69959575,194.19,194.18,15.46750534]
[1761375546654,31.24378848,194.19,194.18,15.46750534]
[1761375547843,28.02959575,194.19,194.18,15.46750534]
[1761375548051,30.57378848,194.19,194.18,15.46750534]
[1761375550038,7.69378848,194.19,194.18,15.46750534]
[1761375550758,8.36378848,194.19,194.18,15.46750534]
[1761375551848,5.81959575,194.19,194.18,15.46750534]
[1761375552055,8.36378848,194.19,194.18,15.46750534]
[1761375553553,5.81959575,194.19,194.18,15.46750534]
[1761375554161,5.14959575,194.19,194.18,15.46750534]
[1761375554955,5.81959575,194.19,194.18,15.46750534]
[1761375556848,5.14959575,194.19,194.18,15.46750534]
[1761375557247,5.81959575,194.19,194.18,15.46750534]
[1761375560849,5.14959575,194.19,194.18,15.46750534]
[1761375562554,5.80959575,194.19,194.18,15.46750534]
[1761375563539,5.14959575,194.19,194.18,15.46750534]
[1761375573165,8.99100166,194.19,194.18,15.46750534]
[1761375573367,8.99100166,194.19,194.18,16.12750534]
[1761375573567,8.99100166,194.19,194.18,15.46750534]
[1761375573947,5.14959575,194.19,194.18,15.46750534]
[1761375574147,8.99110239,194.19,194.18,15.46750534]
[1761375574652,3.84150664,194.19,194.18,16.12750534]
[1761375574853,5.1493646,194.2,194.18,16.12750534]
[1761375575062,5.1493646,194.2,194.19,36.28]
[1761375575268,3.84719655,194.2,194.19,36.28]
[1761375575566,3.84719655,194.2,194.19,51.74591055]
[1761375576443,6.39138928,194.2,194.19,51.74591055]
[1761375576643,5.47745876,194.2,194.19,51.74591055]
[1761375577373,6.77953494,194.21,194.19,51.74591055]
[1761375577759,6.77953494,194.21,194.2,0.66]
[1761375578072,6.77953494,194.21,194.2,16.12511328]
[1761375578573,6.77953494,194.21,194.2,15.46511328]
[1761375582672,5.14927273,194.21,194.2,15.46511328]
[1761375589454,5.14927273,194.21,194.19,36.28]
[1761375592072,5.14927273,194.21,194.19,35.62]
[1761375594079,5.83927273,194.21,194.19,35.62]
[1761375596165,5.14927273,194.21,194.19,35.62]
[1761375596486,5.83927273,194.21,194.19,35.62]
[1761375596686,5.14927273,194.21,194.19,35.62]
[1761375597395,5.83927273,194.21,194.19,35.62]
[1761375600389,5.14927273,194.21,194.19,35.62]
[1761375601089,5.14927273,194.21,194.19,36.28]
[1761375601295,5.14927273,194.21,194.2,35.58]
[1761375601591,102.2,194.22,194.2,35.58]
[1761375601978,0.72,194.21,194.2,35.58]
[1761375602373,2.35026221,194.21,194.2,35.58]
[1761375602574,0.72,194.21,194.2,35.58]
[1761375603288,108.97914947,194.22,194.2,35.58]
[1761375603471,109.69914947,194.22,194.2,35.58]
[1761375606577,7.49914947,194.22,194.2,35.58]
[1761375607179,5.86888726,194.22,194.2,35.58]
[1761375607478,0.72,194.23,194.2,35.58]
[1761375607799,6.7787899,194.24,194.2,36.24]
[1761375608101,7.4987899,194.24,194.2,36.24]
[1761375608996,6.77887449,194.23,194.2,36.24]
[1761375609791,5.14861228,194.23,194.21,0.66]
[1761375610292,5.14827018,194.24,194.21,0.66]
[1761375610678,5.86827018,194.24,194.21,0.66]
[1761375611077,7.49853239,194.24,194.2,35.58]
[1761375611292,7.49853239,194.24,194.2,36.24]
[1761375612798,7.49853239,194.24,194.2,35.58]
[1761375612977,7.49853239,194.24,194.21,0.66]
[1761375613377,7.49853239,194.24,194.2,36.24]
[1761375613590,5.86861623,194.23,194.2,36.24]
[1761375613994,7.49887844,194.23,194.2,36.24]
[1761375614716,7.49887844,194.23,194.2,0.66]
[1761375615014,7.49887844,194.23,194.21,35.58]
[1761375615379,5.86861623,194.23,194.2,0.66]
[1761375615678,7.49887844,194.23,194.21,35.58]
[1761375616107,7.49887844,194.23,194.2,0.66]
[1761375616318,7.49887844,194.23,194.21,35.58]
[1761375616605,7.49887844,194.23,194.2,0.66]
[1761375616801,7.49887844,194.23,194.21,35.58]
[1761375617310,7.49887844,194.23,194.22,35.58]
[1761375635215,7.49887844,194.23,194.19,0.7]
[1761375635409,1.63026221,194.22,194.2,35.56]
[1761375636314,7.4991336,194.22,194.2,35.56]
[1761375636501,6.7791336,194.22,194.2,35.56]
[1761375637319,7.4991336,194.22,194.2,35.56]
[1761375638805,8.41572594,194.22,194.2,35.56]
[1761375639723,7.69572594,194.22,194.2,35.56]
[1761375640625,8.41572594,194.22,194.2,35.56]
[1761375646725,7.69572594,194.22,194.2,35.56]
[1761375646907,2.54685455,194.22,194.2,35.56]
[1761375649939,8.4154423,194.23,194.2,35.56]
[1761375650433,0.72,194.22,194.21,15.46431609]
[1761375651342,0.72,194.23,194.21,15.46431609]
[1761375651519,2.54685455,194.23,194.21,15.46431609]
[1761375651719,3.26685455,194.23,194.21,15.46431609]
[1761375652817,8.4155414,194.23,194.21,15.46431609]
[1761375656137,7.6955414,194.23,194.21,15.46431609]
[1761375656635,8.4155414,194.23,194.21,15.46431609]
[1761375659039,0.68,194.22,194.21,15.46431609]
[1761375659526,8.3755414,194.23,194.21,15.46431609]
[1761375659826,8.3755414,194.23,194.22,35.56]
[1761375663840,7.6955414,194.23,194.22,35.56]
[1761375664046,2.54685455,194.23,194.22,35.56]
[1761375664245,0.68,194.25,194.22,35.56]
[1761375664423,22.88,194.26,194.23,0.66]
[1761375664424,30.57465461,194.26,194.23,0.66]
[1761375664621,122.76408547,194.28,194.24,35.56]
[1761375664922,110.5740648,194.28,194.24,35.56]
[1761375665133,110.5740648,194.28,194.25,15.46033136]
[1761375665324,0.68,194.27,194.26,35.56]
[1761375666247,8.37432971,194.27,194.26,51.02033136]
[1761375666951,7.69432971,194.27,194.26,51.02033136]
[1761375667841,8.37432971,194.27,194.26,51.02033136]
[1761375668344,5.14747516,194.27,194.26,51.02033136]
[1761375669726,2.54685455,194.27,194.26,51.02033136]
[1761375669927,3.22685455,194.27,194.26,51.02033136]
[1761375672045,2.54685455,194.27,194.26,51.02033136]
[1761375672424,110.57407647,194.28,194.26,51.02033136]
[1761375672839,110.57407647,194.28,194.26,35.56]
[1761375673346,110.57407647,194.28,194.27,15.46033136]
[1761375677651,108.02722192,194.28,194.27,15.46033136]
[1761375677848,110.57407647,194.28,194.27,15.46033136]
[1761375679058,109.89407647,194.28,194.27,15.46033136]
[1761375679440,110.57407647,194.28,194.27,15.46033136]
[1761375681354,22.88,194.25,194.16,0.1]
[1761375681650,22.88,194.25,194.19,15.46351898]
[1761375681651,2.54685455,194.21,194.19,15.46351898]
[1761375681832,2.54685455,194.21,194.2,35.54]
[1761375683960,8.41573419,194.22,194.2,35.54]
[1761375684638,2.54685455,194.21,194.2,35.54]
[1761375687859,8.41573419,194.22,194.2,35.54]
[1761375688447,2.54685455,194.21,194.2,35.54]
[1761375692065,5.86887964,194.22,194.2,35.54]
[1761375692245,2.54685455,194.21,194.2,35.54]
[1761375692955,7.69551939,194.23,194.2,36.21]
[1761375693353,8.41551939,194.23,194.2,36.21]
[1761375693762,5.86866484,194.23,194.2,36.21]
[1761375693971,8.41512473,194.24,194.2,36.21]
[1761375695239,2.54685455,194.23,194.2,36.21]
[1761375695443,3.26685455,194.23,194.2,36.21]
[1761375695968,8.41540691,194.23,194.2,36.21]
[1761375697069,8.41540691,194.23,194.2,35.54]
[1761375697364,8.41540691,194.23,194.2,36.21]
[1761375698949,7.69540691,194.23,194.21,0.67]
[1761375699275,7.69512473,194.24,194.22,35.56]
[1761375699454,8.41512473,194.24,194.22,35.56]
[1761375699655,0.72,194.23,194.22,35.56]
[1761375700669,2.34980262,194.23,194.22,35.56]
[1761375701560,1.62980262,194.23,194.22,35.56]
[1761375701758,2.34980262,194.23,194.22,35.56]
[1761375702066,0.72,194.23,194.22,35.56]
[1761375702259,2.34980262,194.23,194.22,35.56]
[1761375703472,7.49833786,194.23,194.22,35.56]
[1761375705577,5.14853524,194.23,194.22,35.56]
[1761375705763,6.77833786,194.23,194.22,35.56]
[1761375706156,7.49833786,194.23,194.22,35.56]
[1761375708270,6.77833786,194.23,194.22,35.56]
[1761375711167,7.49833786,194.23,194.22,35.56]
[1761375711477,6.77833786,194.23,194.22,35.56]
[1761375715480,5.14853524,194.23,194.22,35.56]
[1761375716281,5.14827018,194.24,194.22,35.56]
[1761375716582,5.14827018,194.24,194.23,0.72]
[1761375717168,5.14827018,194.24,194.22,36.28]
[1761375717370,5.14800514,194.25,194.22,36.28]
[1761375718485,5.86800514,194.25,194.22,36.28]
[1761375719262,7.49780776,194.25,194.22,36.28]
[1761375719678,5.14800514,194.25,194.23,0.72]
[1761375722386,5.14747516,194.27,194.23,0.72]
[1761375722590,7.47727778,194.27,194.23,0.72]
[1761375722885,0.7,194.26,194.23,0.72]
[1761375724476,7.47775861,194.26,194.24,35.54]
[1761375727466,12.86578206,194.32,194.25,2.34980262]
[1761375727666,7.47621814,194.31,194.25,0.72]
[1761375727881,1.62980262,194.3,194.26,0.72]
[1761375728078,2.32980262,194.3,194.26,0.72]
[1761375729087,0.7,194.3,194.26,0.72]
[1761375730589,5.84690442,194.3,194.26,0.72]
[1761375734296,5.14690442,194.3,194.26,0.72]
[1761375735875,5.14641552,194.31,194.26,0.72]
[1761375736287,5.84641552,194.31,194.26,0.72]
[1761375740096,7.47621814,194.31,194.26,0.72]
[1761375744103,6.77621814,194.31,194.26,0.72]
[1761375744309,5.14688957,194.3,194.26,0.72]
[1761375744608,18.68359054,194.3,194.27,35.54]
[1761375744795,1.62980262,194.28,194.27,35.54]
[1761375745186,2.29980262,194.28,194.27,35.54]
[1761375745687,7.44701283,194.28,194.27,35.54]
[1761375745904,7.44701283,194.28,194.23,0.69]
[1761375746208,0.67,194.27,194.26,35.54]
[1761375749092,1.62980262,194.27,194.26,35.54]
[1761375749501,7.44701283,194.28,194.26,35.54]
[1761375749898,5.81721021,194.28,194.26,35.54]
[1761375750812,5.81721021,194.28,194.24,0.69]
[1761375751109,0.67,194.28,194.27,35.54]
[1761375752588,7.44681095,194.29,194.27,35.54]
[1761375753401,5.14700833,194.29,194.27,35.54]
[1761375753597,5.81700833,194.29,194.27,35.54]
[1761375754685,6.77645499,194.31,194.27,36.23]
[1761375754890,6.77645499,194.31,194.27,35.54]
[1761375755090,7.44645499,194.31,194.27,36.23]
[1761375756417,5.14665237,194.31,194.28,0.69]
[1761375757111,5.81665237,194.31,194.28,0.69]
[1761375757301,7.44645499,194.31,194.28,0.69]
[1761375758794,7.44645499,194.31,194.27,36.23]
[1761375760905,1.62980262,194.3,194.27,36.23]
[1761375761091,7.44645499,194.31,194.27,36.23]
[1761375762206,5.81665237,194.31,194.27,36.23]
[1761375762409,7.44645499,194.31,194.27,36.23]
[1761375762821,8.3612467,194.31,194.27,36.23]
[1761375763813,8.36135582,194.3,194.27,35.54]
[1761375764325,8.36135582,194.3,194.27,36.23]
[1761375765614,8.36135582,194.3,194.27,35.54]
[1761375766002,8.36135582,194.3,194.27,36.23]
[1761375768215,7.69135582,194.3,194.27,36.23]
[1761375771226,8.36135582,194.3,194.27,36.23]
[1761375772021,7.69135582,194.3,194.27,36.23]
[1761375772321,0.67,194.29,194.25,18.66253584]
[1761375772512,0.67,194.29,194.26,36.2]
[1761375773027,8.36135582,194.3,194.26,36.2]
[1761375773326,137.94511619,194.33,194.27,0.66]
[1761375773327,22.88,194.33,194.27,0.66]
[1761375773524,0.67,194.37,194.31,2.54459433]
[1761375773822,2.54459433,194.39,194.28,0.51472102]
[1761375773823,2.54459433,194.4,194.33,2.54459433]
[1761375774057,2.54459433,194.4,194.34,38.08459433]
[1761375774228,3.21459433,194.4,194.34,43.89836265]
[1761375774526,8.35868972,194.4,194.35,0.66]
[1761375774727,0.67,194.39,194.35,0.66]
[1761375775035,0.67,194.39,194.34,38.74459433]
[1761375775407,0.67,194.39,194.34,38.08459433]
[1761375775705,0.67,194.39,194.35,0.66]
[1761375777815,5.81433187,194.39,194.35,0.66]
[1761375778219,0.67,194.38,194.35,0.66]
[1761375779443,0.67,194.38,194.34,36.26]
[1761375780519,8.35923092,194.38,194.35,35.52]
[1761375780920,0.67,194.37,194.35,35.52]
[1761375785351,8.35923092,194.38,194.35,35.52]
[1761375786346,8.35889501,194.39,194.35,36.24]
[1761375786730,0.67,194.38,194.35,36.24]
[1761375787547,13.72886169,194.38,194.35,36.24]
[1761375788940,13.05886169,194.38,194.36,0.72]
[1761375789142,7.68863475,194.4,194.36,0.72]
[1761375789348,5.81430889,194.39,194.35,35.52]
[1761375789548,5.81430889,194.39,194.35,36.24]
[1761375789853,0.67,194.38,194.35,36.24]
[1761375790233,3.21459433,194.38,194.35,36.24]
[1761375791441,0.67,194.37,194.33,0.72]
[1761375791757,0.67,194.37,194.34,35.52]
[1761375794459,0.67,194.37,194.34,36.24]
[1761375796751,7.69072999,194.38,194.35,0.72]
[1761375797452,8.36072999,194.38,194.35,0.72]
[1761375797658,0.67,194.38,194.35,0.72]
[1761375802063,5.81457891,194.38,194.34,35.52]
[1761375802253,5.81457891,194.38,194.34,36.2]
[1761375802645,5.81457891,194.38,194.34,35.52]
[1761375802862,5.81457891,194.38,194.35,0.68]
[1761375803774,0.67,194.38,194.35,0.68]
[1761375805569,2.54459433,194.36,194.29,15.45157219]
[1761375805773,3.22459433,194.33,194.3,35.52]
[1761375806171,0.68,194.32,194.3,35.52]
[1761375806673,3.22459433,194.32,194.3,35.52]
[1761375808066,0.68,194.32,194.3,35.52]
[1761375809772,3.22459433,194.32,194.3,35.52]
[1761375811475,3.22459433,194.31,194.3,35.52]
[1761375812851,8.37100985,194.31,194.3,35.52]
[1761375817374,8.37100985,194.31,194.24,0.68]
[1761375817684,0.68,194.3,194.27,35.52]
[1761375818382,5.14694528,194.29,194.27,35.52]
[1761375818681,2.54459433,194.28,194.27,35.52]
[1761375818980,3.22459433,194.28,194.27,35.52]
[1761375821981,8.37192854,194.28,194.22,31.56]
[1761375822283,2.54459433,194.23,194.2,15.4547562]
[1761375822577,16.13794151,194.27,194.21,38.76459433]
[1761375822775,2.30920488,194.27,194.21,37.84920488]
[1761375822982,17.77033302,194.27,194.22,2.30920488]
[1761375823478,16.14112814,194.27,194.23,0.68]
[1761375823679,6.77694502,194.26,194.23,0.68]
[1761375823880,7.45694502,194.26,194.21,35.54]
[1761375824176,7.45694502,194.26,194.22,0.68]
[1761375824374,5.82774014,194.26,194.22,0.68]
[1761375825185,7.45694502,194.26,194.22,0.68]
[1761375825685,5.82774014,194.26,194.23,35.58]
[1761375825886,5.14774014,194.26,194.23,35.58]
[1761375826083,5.14774014,194.26,194.24,0.68]
[1761375826285,5.14749962,194.27,194.24,0.68]
[1761375831788,5.84749962,194.27,194.24,0.68]
[1761375831988,1.62920488,194.25,194.23,35.58]
[1761375832298,0.7,194.24,194.23,35.58]
[1761375833576,2.32920488,194.25,194.23,35.58]
[1761375835393,0.7,194.25,194.23,35.58]
[1761375837184,1.62920488,194.24,194.23,35.58]
[1761375837698,2.32920488,194.24,194.23,35.58]
[1761375837994,2.32920488,194.24,194.18,0.51498609]
[1761375838295,1.62920488,194.23,194.19,36.23]
[1761375838681,1.62920488,194.23,194.2,0.72]
[1761375838878,2.30920488,194.23,194.2,0.72]
[1761375839482,2.30920488,194.23,194.19,36.28]
[1761375839792,7.45780574,194.23,194.19,36.28]
[1761375842404,0.68,194.22,194.19,36.28]
[1761375846217,6.77780687,194.23,194.19,36.28]
[1761375846396,7.45780687,194.23,194.19,36.28]
[1761375847015,6.77780687,194.23,194.19,36.28]
[1761375847195,0.68,194.22,194.19,36.28]
[1761375848425,2.06180253,194.26,194.2,2.34920488]
[1761375848627,1.62920488,194.3,194.24,1.62920488]
[1761375848787,2.30920488,194.31,194.25,37.94920488]
[1761375849154,25.18920488,194.31,194.26,0.72]
[1761375849612,0.68,194.3,194.26,0.72]
[1761375849821,0.68,194.32,194.27,1.62920488]
[1761375850023,0.68,194.32,194.28,35.6]
[1761375850203,0.68,194.32,194.28,36.32]
[1761375850708,1.62920488,194.33,194.29,0.72]
[1761375851299,109.65485512,194.34,194.29,0.72]
[1761375851887,0.68,194.33,194.29,0.72]
[1761375853322,5.82599979,194.33,194.29,0.72]
[1761375853932,5.14599979,194.33,194.29,0.72]
[1761375854107,0.68,194.32,194.28,36.32]
[1761375855928,24.50920488,194.29,194.2,5.86911196]
[1761375856119,1.62920488,194.24,194.21,35.62]
[1761375856430,1.62920488,194.24,194.21,36.34]
[1761375856608,0.68,194.28,194.22,0.72]
[1761375856609,1.62920488,194.25,194.22,0.72]
[1761375857717,2.30920488,194.25,194.22,0.72]
[1761375858117,0.68,194.25,194.22,0.72]
[1761375858415,2.30920488,194.25,194.22,0.72]
[1761375858824,1.62920488,194.25,194.22,0.72]
[1761375861520,2.29920488,194.25,194.22,0.72]
[1761375861825,2.29920488,194.25,194.21,41.45900419]
[1761375864729,1.62920488,194.24,194.21,41.45900419]
[1761375865027,2.29920488,194.24,194.21,41.45900419]
[1761375865221,2.29920488,194.24,194.21,40.76900419]
[1761375866127,1.62920488,194.24,194.21,41.45900419]
[1761375866632,2.29920488,194.24,194.21,41.45900419]
[1761375868008,1.62920488,194.25,194.21,41.45900419]
[1761375868216,2.29920488,194.25,194.21,41.45900419]
[1761375870126,1.62920488,194.25,194.22,0.69]
[1761375870741,1.62920488,194.26,194.22,0.69]
[1761375870911,2.29920488,194.26,194.22,0.69]
[1761375871842,1.62920488,194.26,194.22,5.83879923]
[1761375872043,2.29920488,194.25,194.21,40.76902487]
[1761375872226,0.67,194.25,194.21,41.45902487]
[1761375875849,0.67,194.25,194.22,35.6]
[1761375877047,5.81800621,194.25,194.22,35.6]
[1761375877421,0.67,194.24,194.22,35.6]
[1761375878841,5.81829033,194.24,194.19,0.69]
[1761375879030,1.62920488,194.23,194.2,35.6]
[1761375879230,2.29920488,194.23,194.2,35.6]
[1761375879734,1.62920488,194.23,194.2,35.6]
[1761375879922,2.29920488,194.22,194.2,35.6]
[1761375880434,0.67,194.21,194.2,35.6]
[1761375880944,0.67,194.21,194.18,28.02980586]
[1761375881246,0.67,194.21,194.2,35.6]
[1761375882646,2.29920488,194.21,194.2,35.6]
[1761375883739,7.44827329,194.21,194.2,35.6]
[1761375884241,7.44827329,194.21,194.16,0.79]
[1761375884441,0.67,194.2,194.17,35.6]